fUST/lending_fUST_20260422
["ID","MTS","AMOUNT","RATE_DAILY","PERIOD"]
[420959899,1776806280850,500.0,0.00025096,120]
[420959900,1776806285810,500.0,0.00025096,120]
[420959901,1776806299498,500.0,0.00025096,120]
[420959902,1776806299735,515.15,0.00025096,120]
[420959903,1776806303400,500.0,0.00025096,120]
[420959904,1776806445233,500.0,0.00025096,120]
[420959905,1776806448408,206.80701358,0.00025096,120]
[420959906,1776806451059,500.0,0.00025096,120]
[420959907,1776806457779,500.0,0.00025096,120]
[420959908,1776806466207,500.0,0.00025096,120]
[420959909,1776806467917,500.0,0.00025096,120]
[420959910,1776806468976,500.0,0.00025096,120]
[420959911,1776806469037,500.0,0.00025096,120]
[420959912,1776806469243,500.0,0.00025096,120]
[420959913,1776806469480,500.0,0.00025096,120]
[420959914,1776806469652,500.0,0.00025096,120]
[420959915,1776806469717,529.81,0.00025096,120]
[420959916,1776806473004,500.0,0.00025096,120]
[420959917,1776806475027,500.0,0.00025096,120]
[420959918,1776806475229,500.0,0.00025096,120]
[420959919,1776806475558,215.98,0.00025096,120]
[420959920,1776806477252,500.0,0.00025096,120]
[420959921,1776806487170,500.0,0.00025096,120]
[420959922,1776806488969,500.0,0.00025096,120]
[420959923,1776806490609,521.00341202,0.00025096,120]
[420959924,1776806492300,500.0,0.00025096,120]
[420959925,1776806494466,275.895158,0.00025096,120]
[420959926,1776806495465,519.0891691,0.00025096,120]
[420959927,1776806497411,500.0,0.00025096,120]
[420959928,1776806499142,500.0,0.00025105,120]
[420959929,1776806499383,500.0,0.00025105,120]
[420959930,1776806499668,309.58,0.00025105,120]
[420959931,1776806500956,507.10388538,0.00025105,120]
[420959932,1776806506550,500.0,0.00025105,120]
[420959933,1776806512821,535.14,0.00025105,120]
[420959934,1776806519530,500.0,0.00025105,120]
[420959935,1776806519843,477.38,0.00025105,120]
[420959936,1776806525974,500.0,0.00025105,120]
[420959937,1776806532400,170.782147,0.00025105,120]
[420959938,1776806540863,635.2,0.00025105,120]
[420959939,1776806546729,500.0,0.00025105,120]
[420959940,1776806546950,500.0,0.00025105,120]
[420959941,1776806547186,546.07,0.00025105,120]
[420959942,1776806548883,500.0,0.00025105,120]
[420959943,1776806550813,500.0,0.00025105,120]
[420959944,1776806554065,500.0,0.00025105,120]
[420959945,1776806556008,500.0,0.00025105,120]
[420959946,1776806557501,500.0,0.00025105,120]
[420959947,1776806557740,500.0,0.00025105,120]
[420959948,1776806557969,500.0,0.00025105,120]
[420959949,1776806558201,279.68,0.00025105,120]
[420959950,1776806561479,500.0,0.00025105,120]
[420959951,1776806566953,500.0,0.00025105,120]
[420959952,1776806567189,500.0,0.00025105,120]
[420959953,1776806567422,475.48,0.00025105,120]
[420959954,1776806575093,500.0,0.00025105,120]
[420959955,1776806577352,500.0,0.00025105,120]
[420959956,1776806579538,500.0,0.00025105,120]
[420959957,1776806582358,500.0,0.00025105,120]
[420959958,1776806584194,500.0,0.00025105,120]
[420959959,1776806584435,627.87,0.00025105,120]
[420959960,1776806610059,500.0,0.00025105,120]
[420959961,1776806612350,500.0,0.00025105,120]
[420959962,1776806612588,500.0,0.00025105,120]
[420959963,1776806612809,376.89,0.00025105,120]
[420959964,1776806618310,500.0,0.00025105,120]
[420959965,1776806619334,500.0,0.00025105,120]
[420959966,1776806621053,500.0,0.00025105,120]
[420959967,1776806621299,523.59,0.00025105,120]
[420959968,1776806637362,500.0,0.00025105,120]
[420959969,1776806639103,500.0,0.00025105,120]
[420959970,1776806639325,500.0,0.00025105,120]
[420959971,1776806639586,500.0,0.00025105,120]
[420959972,1776806639818,263.43,0.00025105,120]
[420959973,1776806641172,500.0,0.00025105,120]
[420959974,1776806646043,500.0,0.00025105,120]
[420959975,1776806647962,500.0,0.00025105,120]
[420959976,1776806650553,500.0,0.00025105,120]
[420959977,1776806652622,500.0,0.00025105,120]
[420959978,1776806659028,500.0,0.00025105,120]
[420959979,1776806659786,500.0,0.00025105,120]
[420959980,1776806660766,500.0,0.00025105,120]
[420959981,1776806662565,500.0,0.00025105,120]
[420959982,1776806662646,500.0,0.00025105,120]
[420959983,1776806665822,510.58102917,0.00025105,120]
[420959984,1776806670400,500.0,0.00025105,120]
[420959985,1776806670630,500.0,0.00025105,120]
[420959986,1776806670862,500.0,0.00025105,120]
[420959987,1776806671079,380.13,0.00025105,120]
[420959988,1776806675587,500.0,0.00025105,120]
[420959989,1776806677589,500.0,0.00025105,120]
[420959990,1776806677827,421.86,0.00025105,120]
[420959991,1776806680845,490.69014699,0.00025105,120]
[420959992,1776806687767,500.0,0.00025105,120]
[420959993,1776806691549,500.0,0.00025105,120]
[420959994,1776806697609,500.0,0.00025105,120]
[420959995,1776806697826,500.0,0.00025105,120]
[420959996,1776806698071,500.0,0.00025105,120]
[420959997,1776806698294,374.03,0.00025105,120]
[420959998,1776806698789,500.0,0.00025105,120]
[420959999,1776806700401,500.0,0.00025105,120]
[420960000,1776806705717,500.0,0.00025105,120]
[420960001,1776806707209,500.0,0.00025105,120]
[420960002,1776806707435,282.330001,0.00025105,120]
[420960003,1776806710971,500.0,0.00025105,120]
[420960004,1776806713284,500.0,0.00025105,120]
[420960005,1776806713516,500.0,0.00025105,120]
[420960006,1776806713764,500.0,0.00025105,120]
[420960007,1776806713996,500.0,0.00025105,120]
[420960008,1776806714232,500.0,0.00025105,120]
[420960009,1776806714470,500.0,0.00025105,120]
[420960010,1776806714693,292.73,0.00025105,120]
[420960011,1776806716328,526.21745477,0.00025105,120]
[420960012,1776806718288,488.55231805,0.00025105,120]
[420960013,1776806721449,500.0,0.00025105,120]
[420960014,1776806725090,500.0,0.00025105,120]
[420960015,1776806726787,500.0,0.00025105,120]
[420960016,1776806729991,500.0,0.00025105,120]
[420960017,1776806736725,500.0,0.00025105,120]
[420960018,1776806737902,500.0,0.00025105,120]
[420960019,1776806742654,500.0,0.00025105,120]
[420960020,1776806748934,500.0,0.00025105,120]
[420960021,1776806749171,334.01,0.00025105,120]
[420960022,1776806753624,602.61,0.00025105,120]
[420960023,1776806756903,500.0,0.00025105,120]
[420960024,1776806760867,500.0,0.00025105,120]
[420960025,1776806762652,500.0,0.00025105,120]
[420960026,1776806769134,534.22386897,0.00025105,120]
[420960027,1776806774300,500.0,0.00025105,120]
[420960028,1776806775953,500.0,0.00025105,120]
[420960029,1776806776719,462.05168286,0.00025105,120]
[420960030,1776806777575,500.0,0.00025105,120]
[420960031,1776806777637,500.0,0.00025105,120]
[420960032,1776806777799,161.75,0.00025105,120]
[420960033,1776806779132,510.69969563,0.00025105,120]
[420960034,1776806787584,500.0,0.00025105,120]
[420960035,1776806787799,313.02,0.00025105,120]
[420960036,1776806792359,500.0,0.00025105,120]
[420960037,1776806801459,500.50447716,0.00025105,120]
[420960038,1776806804535,500.28644461,0.00025105,120]
[420960077,1776807032891,-5000.0,0.00012717,10]
[420960079,1776807032901,-172.29163589,0.00012781,2]
[420960080,1776807032912,-1808.80890648,0.00012845,2]
[420960090,1776807033062,-2309.8094882,0.00012845,2]
[420960092,1776807033073,-508.0,0.00012845,2]
[420960094,1776807033084,-1000.0,0.00013699,2]
[420960096,1776807033096,-300.0,0.00013972,2]
[420960097,1776807033108,-11649.28988801,0.00013973,2]
[420960099,1776807033121,-168.9517238,0.00014072,2]
[420960100,1776807033133,-500.0,0.00014072,2]
[420960101,1776807033146,-566.14857588,0.00014072,2]
[420960102,1776807033159,-500.0,0.00014072,2]
[420960103,1776807033175,-500.0,0.00014072,2]
[420960104,1776807033186,-500.0,0.00014072,2]
[420960105,1776807033198,-342.0258532,0.00014072,2]
[420960106,1776807033209,-500.0,0.00014072,2]
[420960107,1776807033220,-500.0,0.00014072,2]
[420960108,1776807033232,-500.0,0.00014072,2]
[420960109,1776807033245,-500.0,0.00014072,2]
[420960110,1776807033271,-208.39193504,0.00014072,2]
[420960111,1776807033282,-500.0,0.00014072,2]
[420960112,1776807033293,-500.0,0.00014072,2]
[420960113,1776807033304,-500.0,0.00014072,2]
[420960114,1776807033315,-500.0,0.00014072,2]
[420960115,1776807033326,-500.0,0.00014072,2]
[420960116,1776807033346,-500.0,0.00014072,2]
[420960117,1776807033357,-500.0,0.00014072,2]
[420960118,1776807033369,-500.0,0.00014072,2]
[420960119,1776807033380,-500.0,0.00014072,2]
[420960120,1776807033391,-500.0,0.00014072,2]
[420960121,1776807033404,-292.70063837,0.00014072,2]
[420960122,1776807033415,-500.0,0.00014072,2]
[420960123,1776807033431,-500.0,0.00014072,2]
[420960124,1776807033444,-500.0,0.00014072,2]
[420960125,1776807033458,-500.0,0.00014072,2]
[420960126,1776807033470,-225.59211193,0.00014072,2]
[420960127,1776807033481,-268.88304673,0.00014072,2]
[420960128,1776807033494,-35028.57302241,0.00014073,2]
[420960129,1776807033508,-4240.55941701,0.00014073,2]
[420960130,1776807033521,-376.42830074,0.00014073,2]
[420960131,1776807033534,-5700.0,0.00014073,2]
[420960368,1776807039306,-151.0,0.00013808,2]
[420960369,1776807039315,-46437.51305982,0.00014073,2]
[420960370,1776807039326,-1785.00951315,0.00014073,2]
[420960371,1776807039338,-5199.95634752,0.00014073,2]
[420960372,1776807039349,-342683.82406587,0.00014073,2]
[420960373,1776807039358,-100484.49003543,0.00014073,2]
[420960397,1776807043740,-829.32514657,0.00014073,2]
[420960401,1776807046620,-649.11,0.00014073,2]
[420960404,1776807167353,500.0,0.00025105,120]
[420960405,1776807540096,500.0,4.011e-05,2]
[420960406,1776807540123,500.0,4.011e-05,2]
[420960407,1776807540150,500.0,4.011e-05,2]
[420960408,1776807540178,500.0,4.011e-05,2]
[420960409,1776807540205,500.0,4.011e-05,2]
[420960410,1776807540232,500.0,4.011e-05,2]
[420960411,1776807540262,500.0,4.011e-05,2]
[420960412,1776807624895,3000.0,0.00024657,120]
[420960506,1776808231811,-475.24047514,0.00012408,10]
[420960508,1776808231821,-244.51952486,0.00012533,10]
[420960593,1776808238100,-1180.85107416,0.00012533,10]
[420960594,1776808238110,-172.535267,0.00012917,2]
[420960595,1776808238119,-168.84580317,0.00012939,2]
[420960596,1776808238129,-1000.0,0.00013699,2]
[420960597,1776808238138,-192.110325,0.00013699,2]
[420960598,1776808238148,-1000.0,0.00013699,2]
[420960599,1776808238158,-300.0,0.00013772,2]
[420960600,1776808238167,-7523.59514272,0.00013773,2]
[420960601,1776808238176,-222.91386797,0.00013872,2]
[420960602,1776808238185,-500.0,0.00013872,2]
[420960603,1776808238194,-500.0,0.00013872,2]
[420960604,1776808238203,-500.0,0.00013872,2]
[420960605,1776808238213,-188.21813271,0.00013872,2]
[420960606,1776808238246,-500.0,0.00013872,2]
[420960607,1776808238256,-425.195,0.00013872,2]
[420960608,1776808238266,-500.0,0.00013872,2]
[420960609,1776808238276,-500.0,0.00013872,2]
[420960610,1776808238285,-500.0,0.00013872,2]
[420960611,1776808238295,-500.0,0.00013872,2]
[420960612,1776808238304,-500.0,0.00013872,2]
[420960613,1776808238314,-500.0,0.00013872,2]
[420960614,1776808238324,-500.0,0.00013872,2]
[420960615,1776808238333,-500.0,0.00013872,2]
[420960616,1776808238343,-500.0,0.00013872,2]
[420960617,1776808238352,-500.0,0.00013872,2]
[420960618,1776808238362,-500.0,0.00013872,2]
[420960619,1776808238372,-500.0,0.00013872,2]
[420960620,1776808238381,-293.02052121,0.00013872,2]
[420960621,1776808238390,-500.0,0.00013872,2]
[420960622,1776808238399,-500.0,0.00013872,2]
[420960623,1776808238410,-500.0,0.00013872,2]
[420960624,1776808238419,-600.0,0.00013872,2]
[420960625,1776808238429,-500.0,0.00013873,2]
[420960626,1776808238438,-500.0,0.00013873,2]
[420960627,1776808238447,-500.0,0.00013873,2]
[420960628,1776808238456,-500.0,0.00013873,2]
[420960629,1776808238466,-477.79236382,0.00013873,2]
[420960630,1776808238475,-500.0,0.00013873,2]
[420960631,1776808238485,-246258.26243017,0.00013873,2]
[420960632,1776808238497,-950.54447648,0.00013873,2]
[420960633,1776808238516,-4390.78716792,0.00013873,2]
[420960634,1776808238527,-478.85715799,0.00013873,2]
[420960636,1776808240366,-2284.60625744,0.00013873,2]
[420960645,1776808242993,-2244.0,0.00013873,2]
[420960646,1776808243004,-431.83675393,0.00013873,2]
[420960647,1776808243046,-78198.86173871,0.00013873,2]
[420960652,1776808246210,-29821.5760181,0.00013873,2]
[420960653,1776808246317,-300.0,0.00013873,2]
[420960657,1776808830287,200.0,4.01e-05,2]
[420960658,1776808830320,235.07463,4.01e-05,2]
[420960659,1776808841233,500.0,0.00025061,120]
[420960660,1776808841469,500.0,0.00025061,120]
[420960661,1776808841696,500.0,0.00025061,120]
[420960662,1776808841930,500.0,0.00025061,120]
[420960663,1776808842174,500.0,0.00025061,120]
[420960664,1776808842427,500.0,0.00025061,120]
[420960665,1776808842689,500.0,0.00025061,120]
[420960666,1776808842923,500.0,0.00025061,120]
[420960667,1776808843171,500.0,0.00025061,120]
[420960668,1776808843402,500.0,0.00025061,120]
[420960669,1776808843633,500.0,0.00025061,120]
[420960670,1776808843867,187.98659332,0.00025061,120]
[420960697,1776809432090,-600.17823822,0.00012385,10]
[420960698,1776809432101,-576.63314209,0.00012385,10]
[420960699,1776809432144,-3823.18861969,0.00012385,10]
[420960700,1776809432154,-172.96997389,0.00012637,2]
[420960701,1776809432163,-388.88560342,0.00012764,2]
[420960702,1776809432175,-1542.70471978,0.00012764,2]
[420960703,1776809432184,-496.21789405,0.00013558,2]
[420960704,1776809432193,-1199.0,0.00013571,2]
[420960705,1776809432203,-156.03970758,0.00013572,2]
[420960706,1776809432212,-500.0,0.00013572,2]
[420960707,1776809432221,-500.0,0.00013572,2]
[420960708,1776809432230,-425.11436485,0.00013572,2]
[420960709,1776809432239,-500.0,0.00013572,2]
[420960710,1776809432248,-143.47244787,0.00013572,2]
[420960823,1776809443313,-356.52755213,0.00013572,2]
[420960824,1776809443322,-500.0,0.00013572,2]
[420960825,1776809443332,-500.0,0.00013572,2]
[420960826,1776809443342,-500.0,0.00013572,2]
[420960827,1776809443351,-115.47244787,0.00013572,2]
[420960834,1776809446260,-384.52755213,0.00013572,2]
[420960835,1776809446269,-417.49884787,0.00013572,2]
[420960836,1776809446315,-82.50115213,0.00013572,2]
[420960837,1776809446324,-500.0,0.00013572,2]
[420960838,1776809446333,-458.0,0.00013572,2]
[420960839,1776809446342,-500.0,0.00013572,2]
[420960840,1776809446351,-500.0,0.00013572,2]
[420960841,1776809446360,-500.0,0.00013572,2]
[420960842,1776809446369,-155.57914239,0.00013572,2]
[420960843,1776809446379,-500.0,0.00013572,2]
[420960844,1776809446388,-500.0,0.00013572,2]
[420960845,1776809446398,-500.0,0.00013572,2]
[420960846,1776809446407,-500.0,0.00013572,2]
[420960847,1776809446417,-500.0,0.00013572,2]
[420960848,1776809446426,-500.0,0.00013572,2]
[420960849,1776809446435,-250.0,0.00013572,2]
[420960850,1776809446445,-9863.06717446,0.00013573,2]
[420960851,1776809446454,-8548.40337119,0.00013573,2]
[420960852,1776809555729,500.0,0.00025061,120]
[420960853,1776809593621,500.0,0.00025061,120]
[420960854,1776809609873,500.0,0.00025061,120]
[420960855,1776809614453,174.7336,0.00025061,120]
[420960856,1776809615084,174.7336,0.00025061,120]
[420960857,1776809670818,500.0,0.00025061,120]
[420960858,1776809671049,500.0,0.00025061,120]
[420960859,1776809671281,555.39,0.00025061,120]
[420960860,1776809686141,500.0,0.00025061,120]
[420960861,1776809716881,500.0,0.00025061,120]
[420960862,1776809723144,500.0,0.00025061,120]
[420960863,1776809723370,500.0,0.00025061,120]
[420960864,1776809723593,500.0,0.00025061,120]
[420960865,1776809723836,512.89,0.00025061,120]
[420960866,1776809725412,500.0,0.00025061,120]
[420960867,1776809727191,500.0,0.00025061,120]
[420960868,1776809727411,500.0,0.00025061,120]
[420960869,1776809727640,236.31,0.00025061,120]
[420960870,1776809729288,500.0,0.00025061,120]
[420960871,1776809730035,500.0,0.00025061,120]
[420960872,1776809731292,500.0,0.00025061,120]
[420960873,1776809737272,523.55307786,0.00025061,120]
[420960874,1776809739823,521.48605086,0.00025061,120]
[420960875,1776809745743,510.72582243,0.00025061,120]
[420960876,1776809746411,581.5,0.00025061,120]
[420960877,1776809746735,500.0,0.00025061,120]
[420960878,1776809749573,500.0,0.00025061,120]
[420960879,1776809757978,500.0,0.00025061,120]
[420960880,1776809758103,500.0,0.00025061,120]
[420960881,1776809758327,500.0,0.00025061,120]
[420960882,1776809758913,366.57,0.00025061,120]
[420960883,1776809766000,500.0,0.00025061,120]
[420960884,1776809767763,500.0,0.00025061,120]
[420960885,1776809767897,500.0,0.00025061,120]
[420960886,1776809771451,500.0,0.00025061,120]
[420960887,1776809771710,500.0,0.00025061,120]
[420960888,1776809771994,500.0,0.00025061,120]
[420960889,1776809772263,191.13,0.00025061,120]
[420960890,1776809775243,500.0,0.00025061,120]
[420960891,1776809775469,437.84,0.00025061,120]
[420960892,1776809776885,518.24227067,0.00025061,120]
[420960893,1776809777507,500.0,0.00025061,120]
[420960894,1776809779159,500.0,0.00025061,120]
[420960895,1776809779242,500.0,0.00025061,120]
[420960896,1776809780869,500.0,0.00025061,120]
[420960897,1776809781093,500.0,0.00025061,120]
[420960898,1776809781316,500.0,0.00025061,120]
[420960899,1776809781541,500.0,0.00025061,120]
[420960900,1776809781767,500.0,0.00025061,120]
[420960901,1776809782002,500.0,0.00025061,120]
[420960902,1776809782263,500.0,0.00025061,120]
[420960903,1776809782517,500.0,0.00025061,120]
[420960904,1776809782747,500.0,0.00025061,120]
[420960905,1776809782979,500.0,0.00025061,120]
[420960906,1776809783198,500.0,0.00025061,120]
[420960907,1776809783259,500.0,0.00025061,120]
[420960908,1776809783421,500.0,0.00025061,120]
[420960909,1776809783491,500.0,0.00025061,120]
[420960910,1776809783649,500.0,0.00025061,120]
[420960911,1776809783739,500.0,0.00025061,120]
[420960912,1776809783894,546.51,0.00025061,120]
[420960913,1776809783988,362.68,0.00025061,120]
[420960914,1776809784047,500.0,0.00025061,120]
[420960915,1776809784265,500.0,0.00025061,120]
[420960916,1776809784519,500.0,0.00025061,120]
[420960917,1776809784758,493.54,0.00025061,120]
[420960918,1776809785797,500.0,0.00025061,120]
[420960919,1776809786036,500.0,0.00025061,120]
[420960920,1776809786268,500.0,0.00025061,120]
[420960921,1776809786324,500.0,0.00025061,120]
[420960922,1776809786501,500.0,0.00025061,120]
[420960923,1776809786750,500.0,0.00025061,120]
[420960924,1776809787011,500.0,0.00025061,120]
[420960925,1776809787337,500.0,0.00025061,120]
[420960926,1776809787571,500.0,0.00025061,120]
[420960927,1776809787800,500.0,0.00025061,120]
[420960928,1776809788035,500.0,0.00025061,120]
[420960929,1776809788512,500.0,0.00025061,120]
[420960930,1776809788587,500.0,0.00025061,120]
[420960931,1776809788755,500.0,0.00025061,120]
[420960932,1776809788991,500.0,0.00025061,120]
[420960933,1776809789221,500.0,0.00025061,120]
[420960934,1776809789440,500.0,0.00025061,120]
[420960935,1776809789606,513.92936923,0.00025061,120]
[420960936,1776809789754,500.0,0.00025061,120]
[420960937,1776809790014,500.0,0.00025061,120]
[420960938,1776809790243,500.0,0.00025061,120]
[420960939,1776809790477,500.0,0.00025061,120]
[420960940,1776809790723,500.0,0.00025061,120]
[420960941,1776809790953,500.0,0.00025061,120]
[420960942,1776809791179,451.99,0.00025061,120]
[420960943,1776809793158,500.0,0.00025061,120]
[420960944,1776809793830,500.0,0.00025061,120]
[420960945,1776809794940,500.0,0.00025061,120]
[420960946,1776809796433,500.0,0.00025061,120]
[420960947,1776809798225,500.0,0.00025061,120]
[420960948,1776809798282,527.49610769,0.00025061,120]
[420960949,1776809798834,475.01625036,0.00025061,120]
[420960950,1776809800827,500.0,0.00025061,120]
[420960951,1776809801050,500.0,0.00025061,120]
[420960952,1776809801277,500.0,0.00025061,120]
[420960953,1776809801512,370.53,0.00025061,120]
[420960954,1776809802998,500.0,0.00025061,120]
[420960955,1776809803276,500.0,0.00025061,120]
[420960956,1776809803588,500.0,0.00025061,120]
[420960957,1776809804145,500.0,0.00025061,120]
[420960958,1776809804375,500.0,0.00025061,120]
[420960959,1776809804565,500.0,0.00025061,120]
[420960960,1776809804751,500.0,0.00025061,120]
[420960961,1776809804815,500.0,0.00025061,120]
[420960962,1776809804970,500.0,0.00025061,120]
[420960963,1776809805031,500.0,0.00025061,120]
[420960964,1776809805206,500.0,0.00025061,120]
[420960965,1776809805266,500.0,0.00025061,120]
[420960966,1776809805424,500.0,0.00025061,120]
[420960967,1776809805481,361.02,0.00025061,120]
[420960968,1776809805656,500.0,0.00025061,120]
[420960969,1776809805880,500.0,0.00025061,120]
[420960970,1776809806096,500.0,0.00025061,120]
[420960971,1776809806153,500.0,0.00025061,120]
[420960972,1776809806321,500.0,0.00025061,120]
[420960973,1776809806379,500.0,0.00025061,120]
[420960974,1776809806548,500.0,0.00025061,120]
[420960975,1776809806611,207.87,0.00025061,120]
[420960976,1776809806674,512.00720924,0.00025061,120]
[420960977,1776809806764,500.0,0.00025061,120]
[420960978,1776809807003,500.0,0.00025061,120]
[420960979,1776809807224,500.0,0.00025061,120]
[420960980,1776809807441,500.0,0.00025061,120]
[420960981,1776809807685,500.0,0.00025061,120]
[420960982,1776809807921,500.0,0.00025061,120]
[420960983,1776809808139,500.0,0.00025061,120]
[420960984,1776809808371,500.0,0.00025061,120]
[420960985,1776809808600,500.0,0.00025061,120]
[420960986,1776809808967,445.04,0.00025061,120]
[420960987,1776809809039,500.0,0.00025061,120]
[420960988,1776809810853,500.0,0.00025061,120]
[420960989,1776809811420,500.0,0.00025061,120]
[420960990,1776809812764,500.0,0.00025061,120]
[420960991,1776809813529,500.0,0.00025061,120]
[420960992,1776809814389,500.0,0.00025061,120]
[420960993,1776809814996,465.98567716,0.00025061,120]
[420960994,1776809815089,500.0,0.00025061,120]
[420960995,1776809816233,500.0,0.00025061,120]
[420960996,1776809817477,500.0,0.00025061,120]
[420960997,1776809817893,500.0,0.00025061,120]
[420960998,1776809818127,500.0,0.00025061,120]
[420960999,1776809818360,500.0,0.00025061,120]
[420961000,1776809818579,500.0,0.00025061,120]
[420961001,1776809818803,500.0,0.00025061,120]
[420961002,1776809819045,500.0,0.00025061,120]
[420961003,1776809819107,500.0,0.00025061,120]
[420961004,1776809819214,645.14,0.00025061,120]
[420961005,1776809819271,500.0,0.00025061,120]
[420961006,1776809819518,500.0,0.00025065,120]
[420961007,1776809819749,500.0,0.00025065,120]
[420961008,1776809820434,500.0,0.00025065,120]
[420961009,1776809820656,500.0,0.00025065,120]
[420961010,1776809820716,500.0,0.00025065,120]
[420961011,1776809820885,162.76,0.00025065,120]
[420961012,1776809820943,505.04,0.00025065,120]
[420961013,1776809821596,608.56816498,0.00025065,120]
[420961014,1776809823378,345.08055519,0.00025065,120]
[420961015,1776809824260,500.0,0.00025065,120]
[420961016,1776809824484,500.0,0.00025065,120]
[420961017,1776809826021,500.0,0.00025065,120]
[420961018,1776809829233,500.0,0.00025065,120]
[420961019,1776809829288,500.0,0.00025065,120]
[420961020,1776809830505,500.0,0.00025065,120]
[420961021,1776809830564,500.0,0.00025065,120]
[420961022,1776809830785,500.0,0.00025065,120]
[420961023,1776809831013,500.0,0.00025065,120]
[420961024,1776809831239,500.0,0.00025065,120]
[420961025,1776809831496,212.24,0.00025065,120]
[420961026,1776809832825,500.0,0.00025065,120]
[420961027,1776809833256,500.0,0.00025065,120]
[420961028,1776809834361,500.0,0.00025065,120]
[420961029,1776809836437,500.0,0.00025065,120]
[420961030,1776809836756,500.0,0.00025065,120]
[420961031,1776809837087,500.0,0.00025065,120]
[420961032,1776809837143,500.0,0.00025065,120]
[420961033,1776809837355,500.0,0.00025065,120]
[420961034,1776809837603,500.0,0.00025065,120]
[420961035,1776809837807,500.0,0.00025065,120]
[420961036,1776809838055,433.98,0.00025065,120]
[420961037,1776809838153,559.93,0.00025065,120]
[420961038,1776809838379,500.0,0.00025065,120]
[420961039,1776809838542,500.0,0.00025065,120]
[420961040,1776809841105,500.0,0.00025065,120]
[420961041,1776809841497,500.0,0.00025065,120]
[420961042,1776809842002,572.37,0.00025065,120]
[420961043,1776809843423,500.0,0.00025065,120]
[420961044,1776809845161,500.28605293,0.00025065,120]
[420961045,1776809845391,500.0,0.00025065,120]
[420961046,1776809845625,206.31855963,0.00025065,120]
[420961047,1776809846125,500.0,0.00025065,120]
[420961048,1776809846453,500.0,0.00025065,120]
[420961049,1776809848006,500.0,0.00025065,120]
[420961050,1776809848589,500.0,0.00025065,120]
[420961051,1776809848804,500.0,0.00025065,120]
[420961052,1776809848878,500.0,0.00025065,120]